Cogmind - Beta 10.2 @@@ ROGUE MODE // 2020.12.05 @ 12:02:22 Player: BloodOwl Result: Destroyed by G-34 Mercenary with Small Laser Performance ------------- Evolutions (0) 0 Regions Visited (1) 200 Robots Destroyed (3) 15 Value Destroyed (42) 42 Prototype IDs (0) 0 Alien Tech Used (0) 0 Bonus (0) 0 TOTAL SCORE: 257 Bonus ------- None Cogmind --------- Core Integrity 0/250 Matter 295/300 Energy 100/100 System Corruption 0% Temperature Cool (6) Movement Core (50) Location -10/Materials Parts ------- > --- POWER (1) -------- (None) > --- PROPULSION (2) --- (None) > --- UTILITY (2) ------ (None) > --- WEAPON (2) ------- (None) > --- INVENTORY (4) ---- Aluminum Leg Wheel High-capacity Matter Pod (0) Light Assault Rifle Peak State ------------ > --- POWER ------------ (None) > --- PROPULSION ------- Aluminum Leg Wheel > --- UTILITY ---------- (None) > --- WEAPON ----------- Small Laser Light Assault Rifle > --- INVENTORY -------- Assault Rifle [Rating: 4] Favorites ----------- Power None Propulsion Aluminum Leg Leg Aluminum Leg Wheel Wheel Utility None Weapon Small Laser Energy Gun Small Laser Ballistic Gun Light Assault Rifle Build | -11 -10 ------- Run | Scr Mat Slots Evolved . | . . Power . | . . Propulsion . | . . Utility . | . . Weapon . | . . Parts Attached 5 | 4 1 Power . | . . Engine . | . . Core . | . . Reactor . | . . Propulsion 2 | 2 . Treads . | . . Leg 1 | 1 . Wheel 1 | 1 . Hover . | . . Flight . | . . Utility . | . . Device . | . . Storage . | . . Processor . | . . Hackware . | . . Protection . | . . Artifact . | . . Weapon 3 | 2 1 Energy Gun 1 | 1 . Energy Cannon . | . . Ballistic Gun 2 | 1 1 Ballistic Cannon . | . . Launcher . | . . Special Weapon . | . . Impact Weapon . | . . Slashing Weapon . | . . Piercing Weapon . | . . Special Melee Weapon . | . . Unidentified Prototypes . | . . Parts Lost 4 | . 4 Power . | . . Propulsion 2 | . 2 Utility . | . . Weapon 2 | . 2 Highest Loss Streak 4 | . 4 Average Slot Usage (%) 45 | . 45 Leg 11 | . 11 Wheel 11 | . 11 Energy Gun 8 | . 8 Ballistic Gun 12 | . 12 Naked Turns 11 | . 11 Heaviest Build 3 | 2 3 Greatest Support 10 | 10 10 Greatest Overweight (x) . | . . Average Overweight (x) . | . . Largest Inventory Capacity 4 | 4 4 Average Capacity 4 | 4 4 Most Carried 4 | 4 4 Average Carried 3 | 2 3 Final Capacity 4 | 4 4 Final Carried 4 | 4 4 Class Distribution -------------------- 100% | Mutant Dominant Class ---------------- Mutant | -10/Materials Resources | -11 -10 ----------- Run | Scr Mat Matter Collected 249 | 249 . Remotely . | . . Salvage Created 70 | 70 . Parts 5 | 5 . Haulers Intercepted . | . . Recyclers Shooed . | . . Parts Field Recycled . | . . Retrieved Matter . | . . Parts Self-Destructed . | . . Prevented . | . . Kills | -11 -10 ------- Run | Scr Mat Combat Hostiles Destroyed 1 | 1 . Guns 1 | 1 . Classes Destroyed 3 | 3 . Worker 1 | 1 . Tunneler 1 | 1 . Grunt 1 | 1 . Best Kill Streak 2 | 2 . Combat Bots Only 1 | 1 . Max Kills in Single Turn 1 | 1 . Gunslinging . | . . Exploded . | . . Melee . | . . Uniques/NPCs Destroyed . | . . Combat | -11 -10 -------- Run | Scr Mat Damage Taken 537 | 68 469 Core 254 | 21 233 Absorbed by Shields . | . . Core Remaining (%) 91 | 91 . Volleys Fired 14 | 9 5 Largest 2 | 2 2 Hottest 60 | 60 60 Shots Fired 27 | 18 9 Gun 27 | 18 9 Cannon . | . . Launcher . | . . Special . | . . Kinetic 14 | 9 5 Thermal 13 | 9 4 Explosive . | . . Electromagnetic . | . . Robot Hit Streak 4 | 3 4 Robot Miss Streak 3 | 2 3 Penetration Max . | . . Secondary Targets . | . . Shots Hit Robots 13 | 9 4 Core Hits 5 | 5 . Critical Hits . | . . Critical Kills . | . . Critical Parts Destroyed . | . . Melee Attacks . | . . Impact . | . . Slashing . | . . Piercing . | . . Sneak Attacks . | . . Combat Hostiles . | . . Follow-up Attacks . | . . Damage Inflicted 78 | 78 . Guns 78 | 78 . Cannons . | . . Explosions . | . . Melee . | . . Ramming . | . . Kinetic 21 | 21 . Thermal 57 | 57 . Explosive . | . . Electromagnetic . | . . Impact . | . . Slashing . | . . Piercing . | . . Highest Corruption . | . . Average Corruption . | . . Corruption Purged . | . . Overload Shots . | . . Overflow Damage . | . . Projectiles . | . . Explosions . | . . Melee . | . . Knockbacks . | . . Impact . | . . Kinetic . | . . Secondary . | . . Self-Inflicted Damage . | . . Shots . | . . Rammed . | . . Targets Rammed . | . . Kicked . | . . Crushed . | . . Highest Temperature 26 | 26 15 Average Temperature 11 | 12 10 Received Heat Transfer 312 | 36 276 Siege Activations . | . . Robots Corrupted . | . . Combat Hostiles . | . . Parts Fried . | . . Impact Corruptions . | . . Robots Melted . | . . Combat Hostiles . | . . Parts Melted . | . . Heat Transferred 125 | 125 . Parts Sabotaged . | . . Parts Stolen . | . . Parts Stripped . | . . Power Chain Reactions . | . . Missiles Intercepted . | . . Alert | -11 -10 ------- Run | Scr Mat Peak Influence 30 | 30 19 Initial 19 | . 19 Average 9 | 5 14 Maximum Alert Level . | . . Low Security (%) 100 | 100 100 Level 1 . | . . Level 2 . | . . Level 3 . | . . Level 4 . | . . Level 5 . | . . High Security . | . . Max Security . | . . Squads Dispatched . | . . Investigation . | . . Extermination . | . . Reinforcement . | . . Assault . | . . Garrison . | . . Intercept . | . . Construction Impeded . | . . Haulers Reinforced . | . . Stealth | -11 -10 --------- Run | Scr Mat Distress Signals 1 | . 1 Communications Jammed . | . . Distress Signals . | . . Times Spotted 4 | 1 3 Peak Tracking Total 3 | 1 3 Tactical Retreats . | . . Traps | -11 -10 ------- Run | Scr Mat Traps Triggered . | . . Indirectly . | . . Trap Hack Attempts . | . . Triggered . | . . Disarmed . | . . Reprogrammed . | . . Reused . | . . Traps Extracted . | . . Installed . | . . Triggered . | . . Machines | -11 -10 ---------- Run | Scr Mat Machines Disabled . | . . Max in Single Turn . | . . Machines Sabotaged . | . . Garrisons Compromised . | . . Overloaded Fab Kills . | . . Fab Network Shutdowns . | . . Hacking | -11 -10 --------- Run | Scr Mat Machines Accessed . | . . Terminals . | . . Fabricators . | . . Repair Stations . | . . Recycling Units . | . . Scanalyzers . | . . Garrison Access . | . . Total Hacks . | . . Successful . | . . Failed . | . . Catastrophic . | . . Database Lockouts . | . . Manual . | . . Terminals . | . . Fabricators . | . . Repair Stations . | . . Recycling Units . | . . Scanalyzers . | . . Garrison Access . | . . Terminal Hacks . | . . Fabricator Hacks . | . . Repair Station Hacks . | . . Recycling Unit Hacks . | . . Scanalyzer . | . . Garrison Access Hacks . | . . Unauthorized Hacks . | . . Terminals . | . . Fabricators . | . . Repair Stations . | . . Recycling Units . | . . Scanalyzers . | . . Garrison Access . | . . Data Cores Recovered . | . . Used . | . . Hacking Detections . | . . Full Trace Events . | . . Feedback Events . | . . Feedback Blocked . | . . Robot Schematics Acquired . | . . Robots Built . | . . Matter . | . . Time . | . . Total Robot Build Rating . | . . Part Schematics Acquired . | . . Parts Built . | . . Matter . | . . Time . | . . Total Part Build Rating . | . . Parts Repaired . | . . Time . | . . Parts Recycled . | . . Recycled Matter . | . . Retrieved Matter . | . . Retrieved Components . | . . Parts Scanalyzed . | . . Part Schematics Acquired . | . . Parts Damaged . | . . Bothacking | -11 -10 ------------ Run | Scr Mat Used RIF Installer . | . . Robots Hacked . | . . Non-combat . | . . Combat . | . . Robot Hacks Applied . | . . Relay Couplers Released . | . . Robots Rewired . | . . Allies Hacked . | . . Hacks Repelled . | . . Allies | -11 -10 -------- Run | Scr Mat Total Allies . | . . Largest Group . | . . Highest-Rated Group . | . . Highest-Rated Ally . | . . Total Orders . | . . Ally Attacks . | . . Total Damage . | . . Kills . | . . Allies Corrupted . | . . Allies Melted . | . . Intel | -11 -10 ------- Run | Scr Mat Robot Analysis Total . | . . Derelict Logs Recovered . | . . Drone Launches . | . . Drone Recoveries . | . . Exploration | -11 -10 ------------- Run | Scr Mat Turns Passed 241 | 131 110 Spaces Moved 171 | 105 66 Core 42 | 42 . Treads . | . . Legs . | . . Wheels 129 | 63 66 Hover . | . . Flight . | . . Fastest Speed 50 | 50 80 Average Speed 72 | 68 80 Slowest Speed 80 | 80 80 Overloaded Moves . | . . Propulsion Burnouts . | . . Robots Hopped . | . . Cave-ins Triggered . | . . Exploration Rate (%) 12 | 8 16 Regions Visited 1 Branch Regions . Pre-discovered Areas . | . . Known Exits Taken . | . . Unknown Exits Taken 1 | 1 . Scrap Searched . | . . Spaces Dug . | . . Terrain Destroyed . | . . Melee . | . . Projectile . | . . AOE . | . . Terrain Rammed . | . . Walls Destroyed . | . . Machines Disabled . | . . Actions | -11 -10 --------- Run | Scr Mat Total 264 | 149 115 Wait 50 | 20 30 Move 170 | 104 66 Hop . | . . Pick Up 14 | 10 4 Fast Attach . | . . Attach 4 | 4 . Detach . | . . Swap 1 | . 1 Drop 6 | 2 4 Fire 14 | 9 5 Melee . | . . Ram . | . . Kick . | . . Crush . | . . Escape Stasis . | . . Rewire 5 | . 5 Trap . | . . Miscellaneous . | . . Route ------- -11/Scrapyard -10/Materials History --------- Turn | Location | Event 2 | -11/Scrapyard | Met Revision 17 103 | -11/Scrapyard | Discovered new exit (range 8) 132 | -11/Scrapyard | Entered Materials 219 | -10/Materials | Core integrity fell below 50% 238 | -10/Materials | Core integrity fell below 20% 242 | -10/Materials | Destroyed by G-34 Mercenary with Small Laser Last Messages --------------- Acquired Aluminum Leg. Acquired Wheel. Attempting to rewire R-06 Scavenger. R-06 Scavenger is broken beyond repair. Attempting to rewire R-06 Scavenger. R-06 Scavenger is broken beyond repair. Attempting to rewire R-06 Scavenger. R-06 Scavenger is broken beyond repair. Attempting to rewire R-06 Scavenger. R-06 Scavenger is broken beyond repair. Attempting to rewire R-06 Scavenger. R-06 Scavenger is broken beyond repair. When the line of fire is red, you are attempting to shoot through an object at another target, which incurs significant penalties. Sml. Laser destroyed. W-16 Scout destroyed. Wheel destroyed. Aluminum Leg destroyed. Assault Rifle destroyed. [Achievement: First Step to Greatness] Map ----- +----------------------------------------------------+ | ???????# ""??" ??????????????? | | ???????# ""? ???????????????? | | ???????# ? ????????????????? | | ???????# ??????#?????????? | | ???????# """ """???? #?????????? | | ???????# """"" """""?? #?????????? | | ???????# """"" """"" #?????????? | | ???????# """"" """"" #?????????? | | ???????# """ """ ! #?????????? | | ????#### ####??????? | | ????# ?????? | | ????# ?????? | | ????# ?????? | | ????####+######+##### ####?????????? | | ???????????# #???????????????? | | ???????????# #???????????????? | | ???????????# #???????????????? | | ???????????# #???????????????? | | ???????????# #???????????????? | | ???????????# #???????????????? | | ???????????# #???????????????? | | ??##########! #???????????????? | | ??# ##;######## #????????????? | | ??# !#*% ^ #????????????? | | ??# r # #????????????? | | ??# r = ; @^ """ #????????????? | | ??#! !k # "Y" ??????????????? | | ??######### #????????????? | | ??????????#^ !! ^ #????????????? | | ?????????? !! a ??????????? | | ?????????? ! ??????????? | | ????????? ??????????? | | ????????? [ g ! ??????????? | | ???????? g ???????????? | | ????????!! #######???????????? | | ???????#### ###+##?????????????????? | | ??????????# #?? ??????????????????? | | ??????????# #?? ?????????????????? | | ??????????? ????" ?????????????????? | | ??????????? ???????????????????????? | | ???????????##???????????????????????? | | ????????????????????????????????????? | | ????????????????????????????????????? | | ????????????????????????????????????? | | ????????????????????????????????????? | | ????????????????????????????????????? | | ????????????????????????????????????? | | ????????????????????????????????????? | | ????????????????????????????????????? | | | +----------------------------------------------------+ Best States ------------- Heat Dissipation 25 Energy Generation 5 Energy Capacity 100 Matter Stores 300 Matter Capacity 300 Sight Range 16 Terrain Scan Density 10 Evasion (%) 50 Item Schematics ----------------- None Robot Schematics ------------------ None Fabricated ------------ Nothing Alien Tech Used ----------------- None Achievements -------------- First Step to Greatness Challenges ------------ None Game ------ Seed TerrabombSeismicMaul Manual? 0 Play Time 00:11:47 Cumulative 0.3 hours Start 2020.12.05 @ 11:49:33 End 2020.12.05 @ 12:02:22 Sessions 1 Manual Loads 0 Difficulty Rogue Special Mode None Game No. 1 Rogue 1 Adventurer 0 Explorer 0 Win Type - Total 0 Types 0/0/0/0/0/0/0/0/0 Lore% 0 Gallery% 0 Achievement% 0 Wizard Run 0 Options --------- ASCII 0 Keyboard 0 Movement Numpad Keybinds 0 Fullscreen 2 Font 24/Terminus Map View 76x50 Tactical HUD 0 Map Filters NONE Filters NONE Steam 1 RUN: 07ba3a2b-3bb2-429e-8bbe-b09d70e4d5e9